[Event "Early-Titled-Tuesday-Blitz-January-23-2024"]
[Site "Chess.com"]
[Date "2024.01.23"]
[Round "10"]
[White "M1711"]
[Black "ATM622"]
[Result "1-0"]
[WhiteElo "2647"]
[BlackElo "2491"]
[TimeControl "180+1"]
[EndTime "9:55:49 PST"]
[Termination "M1711 won by resignation"]

1. Nf3 {[%clk 0:03:00.9]} 1... d5 {[%clk 0:02:59]} 2. c4 {[%clk 0:02:52.1]} 2...
c6 {[%clk 0:02:57.7]} 3. d4 {[%clk 0:02:49.6]} 3... Nf6 {[%clk 0:02:56.3]} 4.
Nc3 {[%clk 0:02:49.3]} 4... g6 {[%clk 0:02:49.7]} 5. cxd5 {[%clk 0:02:48.7]}
5... cxd5 {[%clk 0:02:49.2]} 6. Bf4 {[%clk 0:02:49]} 6... Bg7 {[%clk 0:02:48.2]}
7. e3 {[%clk 0:02:47]} 7... O-O {[%clk 0:02:43.7]} 8. h3 {[%clk 0:02:46.6]} 8...
a6 {[%clk 0:02:38.8]} 9. Bd3 {[%clk 0:02:41.2]} 9... b5 {[%clk 0:02:37.3]} 10.
O-O {[%clk 0:02:40]} 10... Bb7 {[%clk 0:02:24.3]} 11. a4 {[%clk 0:02:25.6]}
11... b4 {[%clk 0:02:18.9]} 12. Na2 {[%clk 0:02:25.8]} 12... a5 {[%clk
0:02:14.7]} 13. Nc1 {[%clk 0:02:24.1]} 13... Ne4 {[%clk 0:02:10.7]} 14. Nb3
{[%clk 0:02:20.5]} 14... Nd7 {[%clk 0:02:09.7]} 15. Qe2 {[%clk 0:02:04.5]} 15...
Qb6 {[%clk 0:02:02]} 16. Bb5 {[%clk 0:01:46.5]} 16... Ndf6 {[%clk 0:01:56.6]}
17. Rfc1 {[%clk 0:01:35.7]} 17... Rac8 {[%clk 0:01:44.9]} 18. Ne5 {[%clk
0:01:11.2]} 18... Nd6 {[%clk 0:01:28.2]} 19. Nc5 {[%clk 0:01:00.7]} 19... Rfd8
{[%clk 0:01:07.7]} 20. Nxb7 {[%clk 0:00:29]} 20... Nxb7 {[%clk 0:01:03.2]} 21.
Nc6 {[%clk 0:00:20.7]} 21... Re8 {[%clk 0:00:58.2]} 22. Nxe7+ {[%clk 0:00:20.7]}
22... Rxe7 {[%clk 0:00:47.6]} 23. Rxc8+ {[%clk 0:00:20.6]} 23... Bf8 {[%clk
0:00:37.8]} 24. Rac1 {[%clk 0:00:19.2]} 24... Kg7 {[%clk 0:00:31.6]} 25. R1c6
{[%clk 0:00:19]} 25... Qa7 {[%clk 0:00:27.3]} 26. Ra6 {[%clk 0:00:19.2]} 26...
Qxd4 {[%clk 0:00:12.3]} 27. exd4 {[%clk 0:00:16.1]} 27... Rxe2 {[%clk
0:00:13.2]} 28. Bxe2 {[%clk 0:00:15.8]} 1-0

[Event "Early-Titled-Tuesday-Blitz-January-23-2024"]
[Site "Chess.com"]
[Date "2024.01.23"]
[Round "10"]
[White "viktorgen2021"]
[Black "enriquetejedor"]
[Result "1-0"]
[WhiteElo "2575"]
[BlackElo "2715"]
[TimeControl "180+1"]
[EndTime "9:55:55 PST"]
[Termination "viktorgen2021 won by resignation"]

1. d4 {[%clk 0:02:54]} 1... d6 {[%clk 0:02:59.1]} 2. Nf3 {[%clk 0:02:53.6]} 2...
c6 {[%clk 0:02:56.4]} 3. g3 {[%clk 0:02:52.4]} 3... Nf6 {[%clk 0:02:55.4]} 4.
Bg2 {[%clk 0:02:52.3]} 4... g6 {[%clk 0:02:51.7]} 5. O-O {[%clk 0:02:52.1]} 5...
Bg7 {[%clk 0:02:52.6]} 6. a4 {[%clk 0:02:52.5]} 6... a5 {[%clk 0:02:51.5]} 7.
Nc3 {[%clk 0:02:52.7]} 7... O-O {[%clk 0:02:51.7]} 8. h3 {[%clk 0:02:53.2]} 8...
Na6 {[%clk 0:02:51.4]} 9. e4 {[%clk 0:02:52.9]} 9... Nb4 {[%clk 0:02:49.3]} 10.
Re1 {[%clk 0:02:52.7]} 10... Nd7 {[%clk 0:02:48.5]} 11. e5 {[%clk 0:02:45]}
11... dxe5 {[%clk 0:02:44]} 12. dxe5 {[%clk 0:02:43.5]} 12... Nc5 {[%clk
0:02:44.1]} 13. Be3 {[%clk 0:02:38.6]} 13... Qxd1 {[%clk 0:02:33.8]} 14. Raxd1
{[%clk 0:02:29]} 14... Ne6 {[%clk 0:02:31.4]} 15. Rd2 {[%clk 0:02:26.4]} 15...
h6 {[%clk 0:02:14.6]} 16. Red1 {[%clk 0:02:25.4]} 16... Kh7 {[%clk 0:02:10.5]}
17. h4 {[%clk 0:02:24.2]} 17... Re8 {[%clk 0:01:58]} 18. Bf1 {[%clk 0:02:20.4]}
18... Nc7 {[%clk 0:01:57.5]} 19. Ne4 {[%clk 0:02:11.5]} 19... Bg4 {[%clk
0:01:54.9]} 20. Be2 {[%clk 0:02:03.3]} 20... Nbd5 {[%clk 0:01:55]} 21. Bd4
{[%clk 0:01:44.2]} 21... Ne6 {[%clk 0:01:52.4]} 22. c3 {[%clk 0:01:28.2]} 22...
Rac8 {[%clk 0:01:37.8]} 23. Nfg5+ {[%clk 0:01:23.3]} 23... Nxg5 {[%clk
0:01:23.3]} 24. hxg5 {[%clk 0:01:07.3]} 24... Bxe2 {[%clk 0:01:23.2]} 25. Rxe2
{[%clk 0:01:06.9]} 25... hxg5 {[%clk 0:01:12.6]} 26. Nxg5+ {[%clk 0:00:58.4]}
26... Kg8 {[%clk 0:01:13]} 27. e6 {[%clk 0:00:58]} 27... Bxd4 {[%clk 0:01:10.8]}
28. exf7+ {[%clk 0:00:57.6]} 28... Kg7 {[%clk 0:00:56.2]} 29. fxe8=Q {[%clk
0:00:49.7]} 29... Bxf2+ {[%clk 0:00:55.8]} 30. Rxf2 {[%clk 0:00:46.8]} 30...
Rxe8 {[%clk 0:00:56.7]} 31. c4 {[%clk 0:00:44.3]} 31... Nf6 {[%clk 0:00:56.8]}
32. Ne6+ {[%clk 0:00:36]} 32... Kf7 {[%clk 0:00:56.8]} 33. Nc5 {[%clk
0:00:36.9]} 33... b6 {[%clk 0:00:53.8]} 34. Nd7 {[%clk 0:00:34.8]} 34... c5
{[%clk 0:00:52.5]} 35. Nxf6 {[%clk 0:00:34.6]} 35... exf6 {[%clk 0:00:53.4]} 36.
Rd6 {[%clk 0:00:34.4]} 36... f5 {[%clk 0:00:53.3]} 37. Rxb6 {[%clk 0:00:33.9]}
37... Re4 {[%clk 0:00:53.8]} 38. b3 {[%clk 0:00:33.5]} 38... Kg7 {[%clk
0:00:53.6]} 39. Kg2 {[%clk 0:00:33.8]} 39... Kh6 {[%clk 0:00:53.8]} 40. Rb5
{[%clk 0:00:33.9]} 40... Kg5 {[%clk 0:00:51.2]} 41. Rxc5 {[%clk 0:00:34.1]}
41... Re3 {[%clk 0:00:51.8]} 42. Rb5 {[%clk 0:00:31.4]} 42... Kg4 {[%clk
0:00:51.2]} 43. Rf4+ {[%clk 0:00:31.1]} 43... Kg5 {[%clk 0:00:51.7]} 44. c5
{[%clk 0:00:26.9]} 44... Re2+ {[%clk 0:00:52.1]} 45. Kf3 {[%clk 0:00:26.3]}
45... Re1 {[%clk 0:00:51.3]} 46. Rc4 {[%clk 0:00:26.3]} 46... f4 {[%clk
0:00:48.5]} 47. c6+ {[%clk 0:00:24.9]} 47... Kh6 {[%clk 0:00:48.2]} 48. gxf4
{[%clk 0:00:24.3]} 1-0

[Event "Early-Titled-Tuesday-Blitz-January-23-2024"]
[Site "Chess.com"]
[Date "2024.01.23"]
[Round "10"]
[White "mertfelin"]
[Black "LuminaryHunter"]
[Result "1-0"]
[WhiteElo "2271"]
[BlackElo "2129"]
[TimeControl "180+1"]
[EndTime "9:55:55 PST"]
[Termination "mertfelin won by checkmate"]

1. e4 {[%clk 0:02:59.1]} 1... Nf6 {[%clk 0:02:52.9]} 2. e5 {[%clk 0:02:59.2]}
2... Nd5 {[%clk 0:02:51.5]} 3. d4 {[%clk 0:02:59.6]} 3... d6 {[%clk 0:02:51]} 4.
c4 {[%clk 0:03:00]} 4... Nb6 {[%clk 0:02:51.1]} 5. exd6 {[%clk 0:03:00.6]} 5...
cxd6 {[%clk 0:02:50.1]} 6. Nc3 {[%clk 0:03:00.9]} 6... g6 {[%clk 0:02:50.1]} 7.
Be3 {[%clk 0:03:01.4]} 7... Bg7 {[%clk 0:02:48.4]} 8. Rc1 {[%clk 0:03:01.6]}
8... O-O {[%clk 0:02:48]} 9. b3 {[%clk 0:03:01.5]} 9... Nc6 {[%clk 0:02:46.2]}
10. d5 {[%clk 0:03:01.5]} 10... Nb4 {[%clk 0:02:40.2]} 11. a3 {[%clk 0:02:54.5]}
11... Na6 {[%clk 0:02:33.9]} 12. b4 {[%clk 0:02:54.8]} 12... Bf5 {[%clk
0:02:24.2]} 13. Nf3 {[%clk 0:02:33.7]} 13... Rc8 {[%clk 0:02:22.3]} 14. Bxb6
{[%clk 0:02:33.1]} 14... Qxb6 {[%clk 0:02:20.4]} 15. Bd3 {[%clk 0:02:27.3]}
15... Bg4 {[%clk 0:02:12.8]} 16. h3 {[%clk 0:02:16.4]} 16... Bd7 {[%clk
0:01:56.4]} 17. O-O {[%clk 0:02:14.5]} 17... Nc7 {[%clk 0:01:30.7]} 18. Re1
{[%clk 0:02:12.7]} 18... Rfe8 {[%clk 0:01:27.3]} 19. Ne4 {[%clk 0:02:07.8]}
19... a5 {[%clk 0:01:02.9]} 20. c5 {[%clk 0:02:02.4]} 20... dxc5 {[%clk
0:00:58.5]} 21. bxc5 {[%clk 0:01:57.1]} 21... Qa7 {[%clk 0:00:49.3]} 22. d6
{[%clk 0:01:51]} 22... Nd5 {[%clk 0:00:47.5]} 23. Bc4 {[%clk 0:01:48.3]} 23...
Bc6 {[%clk 0:00:35.4]} 24. Bxd5 {[%clk 0:01:46.3]} 24... Bxd5 {[%clk 0:00:34.2]}
25. d7 {[%clk 0:01:45.4]} 25... Bxe4 {[%clk 0:00:30.1]} 26. dxe8=Q+ {[%clk
0:01:44.9]} 26... Rxe8 {[%clk 0:00:30]} 27. Rxe4 {[%clk 0:01:45.6]} 27... Bb2
{[%clk 0:00:27.8]} 28. Rb1 {[%clk 0:01:40.5]} 28... Bxa3 {[%clk 0:00:28.3]} 29.
Qd7 {[%clk 0:01:39]} 29... Rf8 {[%clk 0:00:27.5]} 30. Rxb7 {[%clk 0:01:35.9]}
30... Qxc5 {[%clk 0:00:24]} 31. Rd4 {[%clk 0:00:58.1]} 31... e6 {[%clk
0:00:12.5]} 32. h4 {[%clk 0:00:49.2]} 32... Qc1+ {[%clk 0:00:11.2]} 33. Rd1
{[%clk 0:00:48.5]} 33... Qf4 {[%clk 0:00:11.3]} 34. Qd4 {[%clk 0:00:46.3]} 34...
Qf5 {[%clk 0:00:09.9]} 35. Ne5 {[%clk 0:00:42.4]} 35... Qc2 {[%clk 0:00:06.1]}
36. Ng4 {[%clk 0:00:39]} 36... Bc5 {[%clk 0:00:05.9]} 37. Nh6# {[%clk
0:00:39.1]} 1-0

[Event "Early-Titled-Tuesday-Blitz-January-23-2024"]
[Site "Chess.com"]
[Date "2024.01.23"]
[Round "10"]
[White "Predator0608"]
[Black "DavidGavrilescu18"]
[Result "0-1"]
[WhiteElo "2516"]
[BlackElo "2792"]
[TimeControl "180+1"]
[EndTime "9:55:57 PST"]
[Termination "DavidGavrilescu18 won by resignation"]

1. e4 {[%clk 0:03:00.9]} 1... Nc6 {[%clk 0:02:54.3]} 2. d4 {[%clk 0:02:55.9]}
2... Rb8 {[%clk 0:02:52.9]} 3. d5 {[%clk 0:02:53.5]} 3... Ne5 {[%clk 0:02:52.4]}
4. f4 {[%clk 0:02:53]} 4... Ng6 {[%clk 0:02:52.6]} 5. Nf3 {[%clk 0:02:52]} 5...
e6 {[%clk 0:02:52.1]} 6. h4 {[%clk 0:02:36.1]} 6... exd5 {[%clk 0:02:49.5]} 7.
exd5 {[%clk 0:02:32.3]} 7... Bc5 {[%clk 0:02:49]} 8. h5 {[%clk 0:02:21.5]} 8...
N6e7 {[%clk 0:02:47.5]} 9. Bd2 {[%clk 0:02:14.2]} 9... Nxd5 {[%clk 0:02:41.9]}
10. c4 {[%clk 0:02:13]} 10... Qe7+ {[%clk 0:02:37.7]} 11. Be2 {[%clk 0:02:12.7]}
11... Ne3 {[%clk 0:02:36.5]} 12. Qb3 {[%clk 0:02:02.7]} 12... Nxg2+ {[%clk
0:02:29.5]} 13. Kd1 {[%clk 0:02:02.9]} 13... Ne3+ {[%clk 0:02:27.9]} 14. Kc1
{[%clk 0:02:01.7]} 14... Nf6 {[%clk 0:02:20.8]} 15. h6 {[%clk 0:01:59]} 15...
gxh6 {[%clk 0:02:18.8]} 16. Nc3 {[%clk 0:01:53.7]} 16... d6 {[%clk 0:02:13.8]}
17. Na4 {[%clk 0:01:48.2]} 17... Neg4 {[%clk 0:01:59.8]} 18. Bd3 {[%clk
0:01:40.9]} 18... O-O {[%clk 0:01:28.4]} 19. Nxc5 {[%clk 0:01:37.4]} 19... dxc5
{[%clk 0:01:26.8]} 20. Qc3 {[%clk 0:01:34.7]} 20... Ne4 {[%clk 0:01:11.4]} 21.
Bxe4 {[%clk 0:01:03.2]} 21... Qxe4 {[%clk 0:01:12.3]} 22. Rg1 {[%clk 0:00:58.1]}
22... Bf5 {[%clk 0:01:04.9]} 23. Ne5 {[%clk 0:00:48.9]} 23... h5 {[%clk
0:01:04.2]} 24. Re1 {[%clk 0:00:27]} 24... Qd4 {[%clk 0:00:59.5]} 25. Qg3 {[%clk
0:00:25.1]} 25... Rbd8 {[%clk 0:00:45.9]} 26. Bc3 {[%clk 0:00:23]} 26... Qf2
{[%clk 0:00:45.8]} 27. Qxf2 {[%clk 0:00:21.6]} 27... Nxf2 {[%clk 0:00:30.6]} 28.
Rg1+ {[%clk 0:00:22.5]} 28... Ng4 {[%clk 0:00:28.5]} 29. b3 {[%clk 0:00:17.7]}
29... f6 {[%clk 0:00:28.5]} 30. Nf3 {[%clk 0:00:14.8]} 30... Rd3 {[%clk
0:00:28.3]} 31. Nh4 {[%clk 0:00:15]} 31... Rxc3+ {[%clk 0:00:28.7]} 32. Kb2
{[%clk 0:00:14.8]} 32... Rc2+ {[%clk 0:00:29.3]} 0-1

[Event "Early-Titled-Tuesday-Blitz-January-23-2024"]
[Site "Chess.com"]
[Date "2024.01.23"]
[Round "10"]
[White "Sofia_Blokhin"]
[Black "pfalcon1949"]
[Result "0-1"]
[WhiteElo "2251"]
[BlackElo "2046"]
[TimeControl "180+1"]
[EndTime "9:56:00 PST"]
[Termination "pfalcon1949 won on time"]

1. d4 {[%clk 0:03:00.9]} 1... Nf6 {[%clk 0:02:58.5]} 2. c4 {[%clk 0:02:59.7]}
2... c5 {[%clk 0:02:57.8]} 3. d5 {[%clk 0:02:59]} 3... b5 {[%clk 0:02:58.1]} 4.
cxb5 {[%clk 0:02:58.4]} 4... a6 {[%clk 0:02:58.7]} 5. bxa6 {[%clk 0:02:55]} 5...
g6 {[%clk 0:02:58.5]} 6. Nc3 {[%clk 0:02:54.9]} 6... Bg7 {[%clk 0:02:58.7]} 7.
e4 {[%clk 0:02:55.1]} 7... O-O {[%clk 0:02:56.3]} 8. Be2 {[%clk 0:02:55.1]} 8...
Qa5 {[%clk 0:02:56.1]} 9. Bd2 {[%clk 0:02:52.6]} 9... Bxa6 {[%clk 0:02:55.3]}
10. Nf3 {[%clk 0:02:51]} 10... Bxe2 {[%clk 0:02:54.4]} 11. Qxe2 {[%clk
0:02:50.8]} 11... Qa6 {[%clk 0:02:55]} 12. Qxa6 {[%clk 0:02:44.4]} 12... Nxa6
{[%clk 0:02:55.9]} 13. O-O {[%clk 0:02:39.5]} 13... d6 {[%clk 0:02:55.8]} 14.
Rfe1 {[%clk 0:02:36.4]} 14... Ng4 {[%clk 0:02:36.3]} 15. Rab1 {[%clk 0:02:22.3]}
15... Nb4 {[%clk 0:02:30.7]} 16. h3 {[%clk 0:02:09.7]} 16... Ne5 {[%clk
0:02:24]} 17. Nxe5 {[%clk 0:02:08.9]} 17... Bxe5 {[%clk 0:02:24.7]} 18. a4
{[%clk 0:01:57.8]} 18... Rfb8 {[%clk 0:02:21.7]} 19. b3 {[%clk 0:01:50.3]} 19...
Nd3 {[%clk 0:02:10.8]} 20. Rf1 {[%clk 0:01:33.4]} 20... Rc8 {[%clk 0:01:42.1]}
21. Nb5 {[%clk 0:01:30]} 21... c4 {[%clk 0:01:39.2]} 22. f4 {[%clk 0:01:09.8]}
22... Bg7 {[%clk 0:01:30.2]} 23. Rf3 {[%clk 0:01:04]} 23... Nc5 {[%clk
0:01:23.3]} 24. bxc4 {[%clk 0:00:53.6]} 24... Nxe4 {[%clk 0:01:22.3]} 25. Bb4
{[%clk 0:00:47.9]} 25... Rxc4 {[%clk 0:01:17.8]} 26. a5 {[%clk 0:00:41.3]} 26...
h5 {[%clk 0:01:02.8]} 27. Ra3 {[%clk 0:00:40.1]} 27... Ra6 {[%clk 0:00:58.6]}
28. Be1 {[%clk 0:00:26.4]} 28... Bf6 {[%clk 0:00:54.7]} 29. Rab3 {[%clk
0:00:22.4]} 29... h4 {[%clk 0:00:52.9]} 30. Na3 {[%clk 0:00:21.8]} 30... Bd4+
{[%clk 0:00:51.4]} 31. Kh2 {[%clk 0:00:20.4]} 31... Kg7 {[%clk 0:00:43.5]} 32.
Nxc4 {[%clk 0:00:19.6]} 32... f6 {[%clk 0:00:32.1]} 33. Nb6 {[%clk 0:00:12.4]}
33... g5 {[%clk 0:00:30.6]} 0-1

[Event "Early-Titled-Tuesday-Blitz-January-23-2024"]
[Site "Chess.com"]
[Date "2024.01.23"]
[Round "10"]
[White "Grossboss19"]
[Black "toninhojit"]
[Result "1-0"]
[WhiteElo "2583"]
[BlackElo "2464"]
[TimeControl "180+1"]
[EndTime "9:56:02 PST"]
[Termination "Grossboss19 won on time"]

1. e4 {[%clk 0:02:50.9]} 1... e5 {[%clk 0:02:59.2]} 2. Nf3 {[%clk 0:02:50.9]}
2... Nc6 {[%clk 0:02:59.7]} 3. Bb5 {[%clk 0:02:49.9]} 3... Nf6 {[%clk
0:02:59.9]} 4. d3 {[%clk 0:02:50.1]} 4... Bc5 {[%clk 0:02:57.8]} 5. O-O {[%clk
0:02:49.8]} 5... d6 {[%clk 0:02:57]} 6. h3 {[%clk 0:02:49.8]} 6... O-O {[%clk
0:02:54]} 7. Nc3 {[%clk 0:02:45.1]} 7... a6 {[%clk 0:02:51.4]} 8. Ba4 {[%clk
0:02:44.6]} 8... b5 {[%clk 0:02:52]} 9. Bb3 {[%clk 0:02:45.2]} 9... Na5 {[%clk
0:02:52.6]} 10. Bg5 {[%clk 0:02:43.3]} 10... Nxb3 {[%clk 0:02:50.7]} 11. axb3
{[%clk 0:02:41.9]} 11... Be6 {[%clk 0:02:47.9]} 12. Nd2 {[%clk 0:02:30.4]} 12...
h6 {[%clk 0:02:47.5]} 13. Bh4 {[%clk 0:02:24.5]} 13... g5 {[%clk 0:02:47.4]} 14.
Bg3 {[%clk 0:02:23.1]} 14... Ne8 {[%clk 0:02:40.5]} 15. Nd5 {[%clk 0:02:21]}
15... Ng7 {[%clk 0:02:34.5]} 16. Bh2 {[%clk 0:02:11.2]} 16... f5 {[%clk
0:02:30.6]} 17. b4 {[%clk 0:01:54]} 17... Ba7 {[%clk 0:02:19]} 18. Kh1 {[%clk
0:01:53.4]} 18... c6 {[%clk 0:02:13.7]} 19. Nc3 {[%clk 0:01:47.2]} 19... f4
{[%clk 0:02:08.7]} 20. Rxa6 {[%clk 0:01:46.1]} 20... Qc8 {[%clk 0:02:09.2]} 21.
Ra3 {[%clk 0:01:40]} 21... g4 {[%clk 0:02:08.7]} 22. hxg4 {[%clk 0:01:35]} 22...
Bd7 {[%clk 0:02:07.7]} 23. f3 {[%clk 0:01:29.4]} 23... h5 {[%clk 0:02:06.3]} 24.
g5 {[%clk 0:01:28.1]} 24... Be3 {[%clk 0:01:52.8]} 25. Bg1 {[%clk 0:01:21.8]}
25... Rxa3 {[%clk 0:01:48.5]} 26. bxa3 {[%clk 0:01:16.7]} 26... Qd8 {[%clk
0:01:46.8]} 27. Re1 {[%clk 0:01:08.7]} 27... Qxg5 {[%clk 0:01:44.3]} 28. Bxe3
{[%clk 0:01:05.9]} 28... fxe3 {[%clk 0:01:45.2]} 29. Nf1 {[%clk 0:01:05.8]}
29... Qh4+ {[%clk 0:01:44.7]} 30. Kg1 {[%clk 0:01:03.9]} 30... Qf2+ {[%clk
0:01:37]} 31. Kh1 {[%clk 0:01:01]} 31... Rf4 {[%clk 0:01:37.6]} 32. Nh2 {[%clk
0:00:54.6]} 32... Rh4 {[%clk 0:01:25.3]} 33. Re2 {[%clk 0:00:51.6]} 33... Qg3
{[%clk 0:01:15.1]} 34. Qg1 {[%clk 0:00:51.3]} 34... Ne6 {[%clk 0:01:12.7]} 35.
Rxe3 {[%clk 0:00:46.4]} 35... Nf4 {[%clk 0:01:08.9]} 36. Ne2 {[%clk 0:00:38]}
36... Nxe2 {[%clk 0:00:51.2]} 37. Rxe2 {[%clk 0:00:37.3]} 1-0

[Event "Early-Titled-Tuesday-Blitz-January-23-2024"]
[Site "Chess.com"]
[Date "2024.01.23"]
[Round "10"]
[White "Witty_Alien"]
[Black "verrbaa"]
[Result "0-1"]
[WhiteElo "2350"]
[BlackElo "2494"]
[TimeControl "180+1"]
[EndTime "9:56:04 PST"]
[Termination "verrbaa won by checkmate"]

1. e4 {[%clk 0:03:00.9]} 1... c5 {[%clk 0:02:54.7]} 2. Nf3 {[%clk 0:03:00.3]}
2... e6 {[%clk 0:02:54.9]} 3. d4 {[%clk 0:03:00.4]} 3... cxd4 {[%clk 0:02:54.8]}
4. c3 {[%clk 0:03:01.2]} 4... d5 {[%clk 0:02:53.7]} 5. e5 {[%clk 0:03:00.4]}
5... dxc3 {[%clk 0:02:50.2]} 6. Bd3 {[%clk 0:03:01]} 6... cxb2 {[%clk
0:02:35.5]} 7. Bxb2 {[%clk 0:03:01.2]} 7... Nc6 {[%clk 0:02:36.2]} 8. O-O {[%clk
0:03:01.2]} 8... Nge7 {[%clk 0:02:19.7]} 9. Nc3 {[%clk 0:02:55.4]} 9... Ng6
{[%clk 0:02:14.1]} 10. Re1 {[%clk 0:02:48]} 10... Be7 {[%clk 0:02:13.9]} 11. Rc1
{[%clk 0:02:28.5]} 11... O-O {[%clk 0:02:12.4]} 12. h4 {[%clk 0:02:29.1]} 12...
Bxh4 {[%clk 0:02:01.6]} 13. g3 {[%clk 0:02:26.4]} 13... Be7 {[%clk 0:01:55.1]}
14. Kg2 {[%clk 0:02:25.6]} 14... h6 {[%clk 0:01:35.6]} 15. Qc2 {[%clk
0:02:04.7]} 15... Nb4 {[%clk 0:01:35.3]} 16. Qb1 {[%clk 0:01:49.8]} 16... Nxd3
{[%clk 0:01:34.4]} 17. Qxd3 {[%clk 0:01:50.7]} 17... a6 {[%clk 0:01:34.6]} 18.
Rh1 {[%clk 0:01:40.4]} 18... b5 {[%clk 0:01:29.2]} 19. Rh5 {[%clk 0:01:17.5]}
19... Bb7 {[%clk 0:01:24.2]} 20. Ne2 {[%clk 0:01:00.8]} 20... d4 {[%clk
0:01:15]} 21. Nxd4 {[%clk 0:00:55.4]} 21... Rc8 {[%clk 0:01:05.7]} 22. Rch1
{[%clk 0:00:50.3]} 22... Qd5 {[%clk 0:01:03.8]} 23. Kg1 {[%clk 0:00:03.4]} 23...
Bc5 {[%clk 0:00:48]} 24. Rxh6 {[%clk 0:00:02.3]} 24... gxh6 {[%clk 0:00:46.1]}
25. Rxh6 {[%clk 0:00:03.2]} 25... Kg7 {[%clk 0:00:44.2]} 26. Nf5+ {[%clk
0:00:03.7]} 26... exf5 {[%clk 0:00:42.1]} 27. e6+ {[%clk 0:00:04.5]} 27... f6
{[%clk 0:00:40.4]} 28. Rxg6+ {[%clk 0:00:02.3]} 28... Kxg6 {[%clk 0:00:27.9]}
29. Nh4+ {[%clk 0:00:02.8]} 29... Kg7 {[%clk 0:00:26.5]} 30. Nxf5+ {[%clk
0:00:03.1]} 30... Kh8 {[%clk 0:00:18.5]} 31. Nd4 {[%clk 0:00:01.9]} 31... Qg2#
{[%clk 0:00:18.2]} 0-1

[Event "Early-Titled-Tuesday-Blitz-January-23-2024"]
[Site "Chess.com"]
[Date "2024.01.23"]
[Round "10"]
[White "brm72"]
[Black "secretsuperstar7"]
[Result "1-0"]
[WhiteElo "2684"]
[BlackElo "2510"]
[TimeControl "180+1"]
[EndTime "9:56:05 PST"]
[Termination "brm72 won by resignation"]

1. e4 {[%clk 0:03:00.9]} 1... c5 {[%clk 0:02:57.3]} 2. Nf3 {[%clk 0:03:00.9]}
2... d6 {[%clk 0:02:57.5]} 3. d4 {[%clk 0:03:01]} 3... cxd4 {[%clk 0:02:57.9]}
4. Nxd4 {[%clk 0:03:01.9]} 4... Nf6 {[%clk 0:02:58.1]} 5. Nc3 {[%clk 0:03:02.3]}
5... a6 {[%clk 0:02:58.5]} 6. f3 {[%clk 0:03:02.4]} 6... b5 {[%clk 0:02:58.7]}
7. Be3 {[%clk 0:03:01.9]} 7... Bb7 {[%clk 0:02:59.2]} 8. Qd2 {[%clk 0:03:01.8]}
8... Nc6 {[%clk 0:02:59.6]} 9. g4 {[%clk 0:03:01.8]} 9... e6 {[%clk 0:02:59.5]}
10. h4 {[%clk 0:03:01.6]} 10... Be7 {[%clk 0:02:59.9]} 11. h5 {[%clk 0:03:01.6]}
11... Ne5 {[%clk 0:02:55.3]} 12. g5 {[%clk 0:03:00.1]} 12... Nfd7 {[%clk
0:02:54.5]} 13. O-O-O {[%clk 0:02:54.9]} 13... Nb6 {[%clk 0:02:51.6]} 14. Rg1
{[%clk 0:02:42.2]} 14... b4 {[%clk 0:02:42.2]} 15. Nb1 {[%clk 0:02:40.8]} 15...
Nbc4 {[%clk 0:02:38.1]} 16. Bxc4 {[%clk 0:02:40.4]} 16... Nxc4 {[%clk
0:02:37.7]} 17. Qe2 {[%clk 0:02:40.5]} 17... Nxe3 {[%clk 0:02:30.1]} 18. Qxe3
{[%clk 0:02:41.4]} 18... O-O {[%clk 0:02:25]} 19. g6 {[%clk 0:02:37]} 19... fxg6
{[%clk 0:02:24.4]} 20. Nxe6 {[%clk 0:02:35]} 20... Qa5 {[%clk 0:02:14.7]} 21.
Nxf8 {[%clk 0:02:33.5]} 21... Rxf8 {[%clk 0:02:14.5]} 22. hxg6 {[%clk
0:02:11.2]} 22... h6 {[%clk 0:02:13.2]} 23. Qb3+ {[%clk 0:02:03.2]} 23... Kh8
{[%clk 0:02:12.5]} 24. Nd2 {[%clk 0:02:03.7]} 24... Bg5 {[%clk 0:02:09.8]} 25.
Kb1 {[%clk 0:02:03.7]} 25... d5 {[%clk 0:01:55.2]} 26. a3 {[%clk 0:01:51.6]}
26... Bxd2 {[%clk 0:01:39.2]} 27. Rxd2 {[%clk 0:01:45.7]} 27... bxa3 {[%clk
0:01:39.3]} 28. Rh2 {[%clk 0:01:43.9]} 28... a2+ {[%clk 0:01:23.8]} 29. Ka1
{[%clk 0:01:39.8]} 29... Qc5 {[%clk 0:01:23.3]} 30. Rgh1 {[%clk 0:01:20.9]}
30... Bc6 {[%clk 0:01:19.4]} 31. Rh5 {[%clk 0:01:05.7]} 31... Qf2 {[%clk
0:01:13.2]} 32. exd5 {[%clk 0:00:59.8]} 32... Bb5 {[%clk 0:01:12]} 33. Qc3
{[%clk 0:00:59.5]} 33... Kg8 {[%clk 0:01:08.3]} 34. d6 {[%clk 0:00:53.8]} 34...
Rxf3 {[%clk 0:01:05.9]} 35. Qc8+ {[%clk 0:00:50.7]} 35... Rf8 {[%clk 0:01:05.3]}
36. d7 {[%clk 0:00:50.6]} 36... Qf6 {[%clk 0:01:00.9]} 37. Rd5 {[%clk
0:00:44.5]} 37... Rd8 {[%clk 0:00:53.4]} 38. Re1 {[%clk 0:00:39.6]} 38... Bxd7
{[%clk 0:00:48.4]} 39. Qc7 {[%clk 0:00:35.8]} 39... Qh4 {[%clk 0:00:42.1]} 40.
Red1 {[%clk 0:00:33]} 40... Rc8 {[%clk 0:00:37.9]} 41. Qxd7 {[%clk 0:00:32.2]}
41... Rf8 {[%clk 0:00:36.3]} 42. Qe6+ {[%clk 0:00:30.7]} 42... Kh8 {[%clk
0:00:35.6]} 43. Qf7 {[%clk 0:00:25.8]} 43... Rc8 {[%clk 0:00:28.6]} 44. Rd7
{[%clk 0:00:24.4]} 1-0